[Event "Early-Titled-Tuesday-Blitz-February-13-2024"]
[Site "Chess.com"]
[Date "2024.02.13"]
[Round "9"]
[White "chess_blitz00"]
[Black "Mariia89"]
[Result "1-0"]
[WhiteElo "2471"]
[BlackElo "2208"]
[TimeControl "180+1"]
[EndTime "9:50:01 PST"]
[Termination "chess_blitz00 won by checkmate"]

1. c3 {[%clk 0:03:00.9]} 1... c5 {[%clk 0:02:59.5]} 2. Nf3 {[%clk 0:02:50.3]}
2... Nc6 {[%clk 0:02:59.2]} 3. g3 {[%clk 0:02:31.8]} 3... g6 {[%clk 0:02:58.2]}
4. Bg2 {[%clk 0:02:32.7]} 4... Bg7 {[%clk 0:02:58.6]} 5. e4 {[%clk 0:02:30.9]}
5... d6 {[%clk 0:02:58]} 6. O-O {[%clk 0:02:30.3]} 6... Nf6 {[%clk 0:02:58.2]}
7. Re1 {[%clk 0:02:29.6]} 7... O-O {[%clk 0:02:58.3]} 8. d4 {[%clk 0:02:26.8]}
8... cxd4 {[%clk 0:02:58.5]} 9. Nxd4 {[%clk 0:02:20]} 9... Bg4 {[%clk 0:02:55]}
10. Qb3 {[%clk 0:02:09.3]} 10... Qc8 {[%clk 0:02:48]} 11. Be3 {[%clk 0:02:02.5]}
11... Bh3 {[%clk 0:02:33.9]} 12. Nd2 {[%clk 0:01:31.3]} 12... Ne5 {[%clk
0:02:16.6]} 13. N2f3 {[%clk 0:01:20]} 13... Nd3 {[%clk 0:02:13.3]} 14. Re2
{[%clk 0:00:56.7]} 14... Nxe4 {[%clk 0:01:57.9]} 15. Bxh3 {[%clk 0:00:38.5]}
15... Qxh3 {[%clk 0:01:57.6]} 16. Qxb7 {[%clk 0:00:37.8]} 16... Nec5 {[%clk
0:01:54.8]} 17. Qxe7 {[%clk 0:00:33.9]} 17... Rfe8 {[%clk 0:01:01.3]} 18. Qxf7+
{[%clk 0:00:22.5]} 18... Kxf7 {[%clk 0:00:59.7]} 19. Ng5+ {[%clk 0:00:23.2]}
19... Kg8 {[%clk 0:01:00.3]} 20. Nxh3 {[%clk 0:00:23.8]} 20... Bxd4 {[%clk
0:00:57]} 21. cxd4 {[%clk 0:00:24.7]} 21... Ne4 {[%clk 0:00:57.1]} 22. Nf4
{[%clk 0:00:10.5]} 22... Nb4 {[%clk 0:00:45.1]} 23. a3 {[%clk 0:00:06.2]} 23...
Nc6 {[%clk 0:00:39]} 24. Rae1 {[%clk 0:00:06.7]} 24... Nf6 {[%clk 0:00:33.8]}
25. d5 {[%clk 0:00:05.3]} 25... Na5 {[%clk 0:00:26]} 26. Bd4 {[%clk 0:00:04.7]}
26... Rxe2 {[%clk 0:00:17.7]} 27. Rxe2 {[%clk 0:00:05.6]} 27... Nd7 {[%clk
0:00:17.9]} 28. Re6 {[%clk 0:00:05.2]} 28... Nc4 {[%clk 0:00:17.7]} 29. b3
{[%clk 0:00:05.3]} 29... Nxa3 {[%clk 0:00:17]} 30. Rxd6 {[%clk 0:00:05.1]} 30...
Nf8 {[%clk 0:00:15]} 31. Rc6 {[%clk 0:00:02.2]} 31... Nb5 {[%clk 0:00:15.1]} 32.
Bb2 {[%clk 0:00:02.2]} 32... Rd8 {[%clk 0:00:13.7]} 33. Ne6 {[%clk 0:00:02.6]}
33... Rd7 {[%clk 0:00:10.5]} 34. Nxf8 {[%clk 0:00:02.8]} 34... Kxf8 {[%clk
0:00:11.4]} 35. Rc8+ {[%clk 0:00:03.2]} 35... Ke7 {[%clk 0:00:10.5]} 36. Rc5
{[%clk 0:00:04.1]} 36... Nc7 {[%clk 0:00:09.9]} 37. Ba3 {[%clk 0:00:03.8]} 37...
Kf7 {[%clk 0:00:08.3]} 38. d6 {[%clk 0:00:03.8]} 38... Ne6 {[%clk 0:00:07.9]}
39. Ra5 {[%clk 0:00:04.1]} 39... Kf6 {[%clk 0:00:06.5]} 40. f4 {[%clk
0:00:04.6]} 40... h5 {[%clk 0:00:05.5]} 41. Kg2 {[%clk 0:00:04.9]} 41... Ng7
{[%clk 0:00:05.1]} 42. Kf3 {[%clk 0:00:05.3]} 42... Nf5 {[%clk 0:00:04.8]} 43.
Bb2+ {[%clk 0:00:05.3]} 43... Ke6 {[%clk 0:00:04.9]} 44. Be5 {[%clk 0:00:05.9]}
44... Nxd6 {[%clk 0:00:05]} 45. Bxd6 {[%clk 0:00:05.9]} 45... Kxd6 {[%clk
0:00:05.2]} 46. Ra6+ {[%clk 0:00:06.3]} 46... Kc5 {[%clk 0:00:05]} 47. Rxg6
{[%clk 0:00:06.6]} 47... Kb4 {[%clk 0:00:05.2]} 48. Rg5 {[%clk 0:00:06]} 48...
h4 {[%clk 0:00:04.4]} 49. gxh4 {[%clk 0:00:05.2]} 49... Kxb3 {[%clk 0:00:04.4]}
50. h5 {[%clk 0:00:05.6]} 50... Rc7 {[%clk 0:00:03.5]} 51. h6 {[%clk 0:00:05.8]}
51... Kb4 {[%clk 0:00:02.8]} 52. Rg7 {[%clk 0:00:05.9]} 52... Rc3+ {[%clk
0:00:02.3]} 53. Kg4 {[%clk 0:00:04.6]} 53... a5 {[%clk 0:00:02.9]} 54. h7 {[%clk
0:00:04.7]} 54... Rc1 {[%clk 0:00:03.1]} 55. h8=Q {[%clk 0:00:04.7]} 55... Rg1+
{[%clk 0:00:03.3]} 56. Kf5 {[%clk 0:00:04.6]} 56... Rxg7 {[%clk 0:00:03.7]} 57.
Qxg7 {[%clk 0:00:05.5]} 57... a4 {[%clk 0:00:04.6]} 58. Qa1 {[%clk 0:00:05.7]}
58... a3 {[%clk 0:00:04.8]} 59. h4 {[%clk 0:00:06.6]} 59... Kb3 {[%clk
0:00:05.2]} 60. h5 {[%clk 0:00:07.5]} 60... a2 {[%clk 0:00:06.1]} 61. h6 {[%clk
0:00:08.4]} 61... Kc4 {[%clk 0:00:06.8]} 62. h7 {[%clk 0:00:09.3]} 62... Kd3
{[%clk 0:00:07.7]} 63. h8=Q {[%clk 0:00:09.4]} 63... Ke2 {[%clk 0:00:08.6]} 64.
Qhb2+ {[%clk 0:00:09.3]} 64... Kf3 {[%clk 0:00:08.3]} 65. Qf1+ {[%clk
0:00:09.7]} 65... Ke3 {[%clk 0:00:08.4]} 66. Qbe2+ {[%clk 0:00:09.9]} 66... Kd4
{[%clk 0:00:08.7]} 67. Qfd1+ {[%clk 0:00:10.3]} 67... Kc3 {[%clk 0:00:09.1]} 68.
Qec2+ {[%clk 0:00:10.9]} 68... Kb4 {[%clk 0:00:10]} 69. Qd4+ {[%clk 0:00:11.3]}
69... Kb5 {[%clk 0:00:09.6]} 70. Qcc4+ {[%clk 0:00:11.4]} 70... Ka5 {[%clk
0:00:07.7]} 71. Qdc5# {[%clk 0:00:11.7]} 1-0

[Event "Early-Titled-Tuesday-Blitz-February-13-2024"]
[Site "Chess.com"]
[Date "2024.02.13"]
[Round "9"]
[White "Ready4abattle"]
[Black "NewYearGirl"]
[Result "0-1"]
[WhiteElo "2261"]
[BlackElo "2406"]
[TimeControl "180+1"]
[EndTime "9:50:04 PST"]
[Termination "NewYearGirl won on time"]

1. e4 {[%clk 0:03:00.9]} 1... c5 {[%clk 0:02:59.7]} 2. Nf3 {[%clk 0:03:01.2]}
2... d6 {[%clk 0:02:59.8]} 3. d4 {[%clk 0:03:01.8]} 3... cxd4 {[%clk 0:03:00.7]}
4. Nxd4 {[%clk 0:03:02.3]} 4... Nf6 {[%clk 0:03:01.5]} 5. Nc3 {[%clk 0:03:02.7]}
5... g6 {[%clk 0:03:01.8]} 6. Be3 {[%clk 0:03:02.2]} 6... Bg7 {[%clk 0:03:02.2]}
7. f3 {[%clk 0:03:02.6]} 7... O-O {[%clk 0:03:02.6]} 8. Qd2 {[%clk 0:03:03.1]}
8... Nc6 {[%clk 0:03:03.1]} 9. O-O-O {[%clk 0:03:03.2]} 9... d5 {[%clk
0:03:03.7]} 10. Qe1 {[%clk 0:02:59.7]} 10... e5 {[%clk 0:03:02.8]} 11. Nxc6
{[%clk 0:03:00]} 11... bxc6 {[%clk 0:03:03.7]} 12. exd5 {[%clk 0:03:00.4]} 12...
Nxd5 {[%clk 0:03:04.6]} 13. Bc4 {[%clk 0:02:59]} 13... Be6 {[%clk 0:03:05.2]}
14. Ne4 {[%clk 0:02:48.1]} 14... Qb8 {[%clk 0:02:52.7]} 15. Bc5 {[%clk
0:02:29.1]} 15... Rd8 {[%clk 0:02:35.6]} 16. Kb1 {[%clk 0:02:20.8]} 16... a5
{[%clk 0:02:26.6]} 17. g4 {[%clk 0:02:06.3]} 17... a4 {[%clk 0:02:23.1]} 18. a3
{[%clk 0:02:00.2]} 18... Qb7 {[%clk 0:02:19.3]} 19. Bxd5 {[%clk 0:01:11.2]}
19... cxd5 {[%clk 0:02:16.4]} 20. Ng5 {[%clk 0:01:10.9]} 20... Rab8 {[%clk
0:02:15.1]} 21. Bb4 {[%clk 0:01:11.2]} 21... Bc8 {[%clk 0:01:57.1]} 22. h4
{[%clk 0:01:10.6]} 22... h6 {[%clk 0:01:55.2]} 23. Nh3 {[%clk 0:01:10.4]} 23...
Bf8 {[%clk 0:01:51.7]} 24. Qxe5 {[%clk 0:01:09.2]} 24... Bxb4 {[%clk 0:01:51.5]}
25. axb4 {[%clk 0:01:09.5]} 25... Qxb4 {[%clk 0:01:51.6]} 26. Qd4 {[%clk
0:01:05.3]} 26... a3 {[%clk 0:01:41.9]} 27. Qxb4 {[%clk 0:01:00.1]} 27... Rxb4
{[%clk 0:01:42.8]} 28. b3 {[%clk 0:01:01]} 28... Ba6 {[%clk 0:01:37.9]} 29. Rd2
{[%clk 0:00:59.7]} 29... d4 {[%clk 0:01:37.5]} 30. Nf4 {[%clk 0:00:58.4]} 30...
d3 {[%clk 0:01:35.2]} 31. Nxd3 {[%clk 0:00:58.5]} 31... Bxd3 {[%clk 0:01:32.7]}
32. Rxd3 {[%clk 0:00:59.2]} 32... Rxd3 {[%clk 0:01:32.4]} 33. cxd3 {[%clk
0:01:00.1]} 33... Rxb3+ {[%clk 0:01:33]} 34. Kc2 {[%clk 0:01:00.6]} 34... Rb2+
{[%clk 0:01:31.8]} 35. Kc3 {[%clk 0:01:00.9]} 35... Rf2 {[%clk 0:01:31.9]} 36.
Ra1 {[%clk 0:00:59.8]} 36... a2 {[%clk 0:01:30.7]} 37. h5 {[%clk 0:00:53]} 37...
g5 {[%clk 0:01:30]} 38. Kd4 {[%clk 0:00:51.9]} 38... Rxf3 {[%clk 0:01:27]} 39.
Rxa2 {[%clk 0:00:46.3]} 39... Rf4+ {[%clk 0:01:27.3]} 40. Ke5 {[%clk 0:00:46]}
40... Rxg4 {[%clk 0:01:27.8]} 41. d4 {[%clk 0:00:46.4]} 41... Rf4 {[%clk
0:01:25.7]} 42. Ra8+ {[%clk 0:00:43.7]} 42... Kg7 {[%clk 0:01:25.6]} 43. d5
{[%clk 0:00:44.6]} 43... Rf1 {[%clk 0:01:19.8]} 44. d6 {[%clk 0:00:45.1]} 44...
Re1+ {[%clk 0:01:19.7]} 45. Kf5 {[%clk 0:00:43]} 45... Rd1 {[%clk 0:01:18.8]}
46. Ke5 {[%clk 0:00:43.3]} 46... g4 {[%clk 0:01:16.2]} 47. Ra4 {[%clk
0:00:43.1]} 47... f6+ {[%clk 0:00:49]} 48. Ke6 {[%clk 0:00:29]} 48... Re1+
{[%clk 0:00:49.1]} 49. Kf5 {[%clk 0:00:24.5]} 49... Re5+ {[%clk 0:00:42.7]} 50.
Kxg4 {[%clk 0:00:24.4]} 50... Rd5 {[%clk 0:00:43]} 51. Ra7+ {[%clk 0:00:23.5]}
51... Kg8 {[%clk 0:00:42.1]} 52. Ra6 {[%clk 0:00:23.5]} 52... Kf7 {[%clk
0:00:41.7]} 53. Kf4 {[%clk 0:00:20.6]} 53... Ke6 {[%clk 0:00:41.1]} 54. d7+
{[%clk 0:00:19.5]} 54... Kxd7 {[%clk 0:00:41]} 55. Rxf6 {[%clk 0:00:19.4]} 55...
Rxh5 {[%clk 0:00:41.6]} 56. Kg4 {[%clk 0:00:20]} 56... Rh1 {[%clk 0:00:41.4]}
57. Rf8 {[%clk 0:00:19.9]} 57... Ke6 {[%clk 0:00:41.7]} 58. Rh8 {[%clk
0:00:19.7]} 58... Kf6 {[%clk 0:00:41.8]} 59. Kg3 {[%clk 0:00:20.1]} 59... Kg7
{[%clk 0:00:41.7]} 60. Ra8 {[%clk 0:00:20.4]} 60... Rg1+ {[%clk 0:00:41.2]} 61.
Kh2 {[%clk 0:00:20.2]} 61... Rg4 {[%clk 0:00:41]} 62. Ra7+ {[%clk 0:00:20.7]}
62... Kg6 {[%clk 0:00:41.5]} 63. Ra8 {[%clk 0:00:21.3]} 63... Rb4 {[%clk
0:00:41.2]} 64. Rg8+ {[%clk 0:00:21.7]} 64... Kh5 {[%clk 0:00:41.5]} 65. Ra8
{[%clk 0:00:22.6]} 65... Kh4 {[%clk 0:00:40.8]} 66. Rg8 {[%clk 0:00:23.2]} 66...
Rb2+ {[%clk 0:00:40.2]} 67. Kg1 {[%clk 0:00:23.1]} 67... h5 {[%clk 0:00:40.2]}
68. Rg7 {[%clk 0:00:23.9]} 68... Kh3 {[%clk 0:00:40.2]} 69. Rh7 {[%clk
0:00:24.3]} 69... h4 {[%clk 0:00:37.9]} 70. Rd7 {[%clk 0:00:24.6]} 70... Rb1+
{[%clk 0:00:37.6]} 71. Kf2 {[%clk 0:00:24.6]} 71... Kh2 {[%clk 0:00:37.9]} 72.
Rh7 {[%clk 0:00:23.5]} 72... Rb2+ {[%clk 0:00:36]} 73. Kf1 {[%clk 0:00:23.6]}
73... h3 {[%clk 0:00:32.6]} 74. Rh8 {[%clk 0:00:23.3]} 74... Rb4 {[%clk
0:00:27.6]} 75. Rh7 {[%clk 0:00:23]} 75... Rf4+ {[%clk 0:00:27.7]} 76. Ke2
{[%clk 0:00:22.6]} 76... Kg3 {[%clk 0:00:27.7]} 77. Rg7+ {[%clk 0:00:19.4]}
77... Kh2 {[%clk 0:00:27.1]} 78. Rh7 {[%clk 0:00:20.3]} 78... Rf6 {[%clk
0:00:27.2]} 79. Ke1 {[%clk 0:00:20.4]} 79... Rf3 {[%clk 0:00:23.9]} 80. Ke2
{[%clk 0:00:20.7]} 80... Kg2 {[%clk 0:00:24.3]} 81. Rg7+ {[%clk 0:00:20.4]}
81... Rg3 {[%clk 0:00:24.9]} 82. Rh7 {[%clk 0:00:20]} 82... h2 {[%clk
0:00:25.4]} 0-1

[Event "Early-Titled-Tuesday-Blitz-February-13-2024"]
[Site "Chess.com"]
[Date "2024.02.13"]
[Round "9"]
[White "KetiTsatsalashvili"]
[Black "LeoWin2012"]
[Result "1-0"]
[WhiteElo "2456"]
[BlackElo "2231"]
[TimeControl "180+1"]
[EndTime "9:50:04 PST"]
[Termination "KetiTsatsalashvili won by checkmate"]

1. d4 {[%clk 0:03:00.9]} 1... Nf6 {[%clk 0:02:56.3]} 2. Nf3 {[%clk 0:02:56.4]}
2... d5 {[%clk 0:02:52.3]} 3. e3 {[%clk 0:02:56.2]} 3... e6 {[%clk 0:02:51.7]}
4. Bd3 {[%clk 0:02:56.3]} 4... Bd6 {[%clk 0:02:52.1]} 5. b3 {[%clk 0:02:54.5]}
5... b6 {[%clk 0:02:51.6]} 6. O-O {[%clk 0:02:53.7]} 6... O-O {[%clk 0:02:50.7]}
7. Bb2 {[%clk 0:02:52.9]} 7... Bb7 {[%clk 0:02:50.5]} 8. Ne5 {[%clk 0:02:53.1]}
8... Nbd7 {[%clk 0:02:49.5]} 9. Nd2 {[%clk 0:02:52.2]} 9... Ne4 {[%clk
0:02:49.3]} 10. f3 {[%clk 0:02:41.3]} 10... Nxd2 {[%clk 0:02:47.6]} 11. Qxd2
{[%clk 0:02:42.2]} 11... f6 {[%clk 0:02:47.7]} 12. Nxd7 {[%clk 0:02:38.5]} 12...
Qxd7 {[%clk 0:02:46.8]} 13. e4 {[%clk 0:02:38.3]} 13... dxe4 {[%clk 0:02:39.3]}
14. Bxe4 {[%clk 0:02:30.6]} 14... Bxe4 {[%clk 0:02:37.9]} 15. fxe4 {[%clk
0:02:31.5]} 15... Rad8 {[%clk 0:02:33.6]} 16. Rad1 {[%clk 0:02:28.7]} 16... c5
{[%clk 0:02:26.8]} 17. d5 {[%clk 0:02:27.9]} 17... exd5 {[%clk 0:02:20.1]} 18.
Qxd5+ {[%clk 0:02:20]} 18... Kh8 {[%clk 0:02:19.7]} 19. Kh1 {[%clk 0:02:12.8]}
19... Qe7 {[%clk 0:02:15.7]} 20. Qc4 {[%clk 0:02:06.2]} 20... Be5 {[%clk
0:02:08.9]} 21. Bxe5 {[%clk 0:02:03.3]} 21... Qxe5 {[%clk 0:02:02.4]} 22. Rd5
{[%clk 0:01:51.2]} 22... Rxd5 {[%clk 0:01:56.8]} 23. exd5 {[%clk 0:01:46.6]}
23... Rd8 {[%clk 0:01:56.5]} 24. Rd1 {[%clk 0:01:45.8]} 24... h5 {[%clk
0:01:49.4]} 25. h3 {[%clk 0:01:45.7]} 25... Rd6 {[%clk 0:01:46.8]} 26. Qd3
{[%clk 0:01:40.4]} 26... Kg8 {[%clk 0:01:45.6]} 27. c4 {[%clk 0:01:40.4]} 27...
Kf7 {[%clk 0:01:42.5]} 28. Qd2 {[%clk 0:01:37.3]} 28... Qg3 {[%clk 0:01:34.6]}
29. Qe2 {[%clk 0:01:34.7]} 29... h4 {[%clk 0:01:26.4]} 30. Re1 {[%clk
0:01:30.5]} 30... Kg6 {[%clk 0:01:25.9]} 31. Qe4+ {[%clk 0:01:28.1]} 31... Kh6
{[%clk 0:01:24.5]} 32. Re3 {[%clk 0:01:25.9]} 32... Qg5 {[%clk 0:01:18]} 33. Rf3
{[%clk 0:01:13.3]} 33... Qc1+ {[%clk 0:01:14.7]} 34. Kh2 {[%clk 0:01:12.7]}
34... Qg5 {[%clk 0:01:09.9]} 35. Rf4 {[%clk 0:01:03.9]} 35... Qg3+ {[%clk
0:01:06.8]} 36. Kh1 {[%clk 0:01:04.1]} 36... g5 {[%clk 0:01:00.7]} 37. Rf5
{[%clk 0:00:39.4]} 37... a6 {[%clk 0:00:46.9]} 38. Qe7 {[%clk 0:00:20.1]} 38...
Kg6 {[%clk 0:00:41.6]} 39. Rf1 {[%clk 0:00:17]} 39... Qe5 {[%clk 0:00:34.2]} 40.
Qf8 {[%clk 0:00:16.7]} 40... Rd7 {[%clk 0:00:26.2]} 41. Qg8+ {[%clk 0:00:15.3]}
41... Rg7 {[%clk 0:00:25.5]} 42. Qd8 {[%clk 0:00:14.8]} 42... b5 {[%clk
0:00:22.2]} 43. cxb5 {[%clk 0:00:12.6]} 43... axb5 {[%clk 0:00:23.1]} 44. d6
{[%clk 0:00:12.8]} 44... Qd4 {[%clk 0:00:20.4]} 45. Qe8+ {[%clk 0:00:11]} 45...
Kh7 {[%clk 0:00:16.4]} 46. Qf8 {[%clk 0:00:09.2]} 46... Kg6 {[%clk 0:00:14.2]}
47. Qe8+ {[%clk 0:00:07]} 47... Kh7 {[%clk 0:00:14.3]} 48. Qxb5 {[%clk
0:00:04.4]} 48... Qxd6 {[%clk 0:00:13.9]} 49. Qc4 {[%clk 0:00:04.8]} 49... Qe5
{[%clk 0:00:08]} 50. Rc1 {[%clk 0:00:03.5]} 50... Rc7 {[%clk 0:00:07.2]} 51. b4
{[%clk 0:00:03.9]} 51... Qf4 {[%clk 0:00:04.4]} 52. Qxf4 {[%clk 0:00:02.5]}
52... gxf4 {[%clk 0:00:05.3]} 53. bxc5 {[%clk 0:00:03.1]} 53... Kg6 {[%clk
0:00:05.4]} 54. a4 {[%clk 0:00:02.9]} 54... Kf5 {[%clk 0:00:05.8]} 55. a5 {[%clk
0:00:03.1]} 55... Ke5 {[%clk 0:00:06.2]} 56. a6 {[%clk 0:00:03.4]} 56... Kd5
{[%clk 0:00:05.8]} 57. Kg1 {[%clk 0:00:03.4]} 57... Kc6 {[%clk 0:00:04.8]} 58.
Kf2 {[%clk 0:00:03.4]} 58... Ra7 {[%clk 0:00:05.1]} 59. Ra1 {[%clk 0:00:03.2]}
59... Kxc5 {[%clk 0:00:05]} 60. Kf3 {[%clk 0:00:03.9]} 60... Kd4 {[%clk
0:00:02]} 61. Kxf4 {[%clk 0:00:04.3]} 61... Kd3 {[%clk 0:00:02.5]} 62. Kg4
{[%clk 0:00:04.3]} 62... Ke2 {[%clk 0:00:02.9]} 63. Ra2+ {[%clk 0:00:04.3]}
63... Kf1 {[%clk 0:00:02.9]} 64. Kxh4 {[%clk 0:00:04.7]} 64... Kg1 {[%clk
0:00:01.9]} 65. Kg4 {[%clk 0:00:05]} 65... Kh2 {[%clk 0:00:02.2]} 66. Kf5 {[%clk
0:00:05.4]} 66... Kg1 {[%clk 0:00:02.1]} 67. Kxf6 {[%clk 0:00:05.9]} 67... Kh1
{[%clk 0:00:02.5]} 68. h4 {[%clk 0:00:06.6]} 68... Kh2 {[%clk 0:00:02.5]} 69. h5
{[%clk 0:00:07.5]} 69... Kg3 {[%clk 0:00:03]} 70. h6 {[%clk 0:00:07.9]} 70...
Kg4 {[%clk 0:00:03.3]} 71. Kg6 {[%clk 0:00:08.3]} 71... Ra8 {[%clk 0:00:02.3]}
72. h7 {[%clk 0:00:08.6]} 72... Kg3 {[%clk 0:00:02.3]} 73. a7 {[%clk 0:00:08.3]}
73... Kh2 {[%clk 0:00:01.6]} 74. Kg7 {[%clk 0:00:08.8]} 74... Kg1 {[%clk
0:00:02]} 75. h8=Q {[%clk 0:00:09.3]} 75... Rxh8 {[%clk 0:00:01.3]} 76. Kxh8
{[%clk 0:00:10.2]} 76... Kh2 {[%clk 0:00:01.2]} 77. a8=Q {[%clk 0:00:09.9]}
77... Kg1 {[%clk 0:00:01.9]} 78. Qe8 {[%clk 0:00:09.9]} 78... Kh2 {[%clk
0:00:01.3]} 79. Qe5+ {[%clk 0:00:10.5]} 79... Kg1 {[%clk 0:00:01.7]} 80. g4
{[%clk 0:00:10.7]} 80... Kh1 {[%clk 0:00:01.9]} 81. Qe1# {[%clk 0:00:10.8]} 1-0

[Event "Early-Titled-Tuesday-Blitz-February-13-2024"]
[Site "Chess.com"]
[Date "2024.02.13"]
[Round "9"]
[White "nj123456"]
[Black "The_Straightforward_Rook"]
[Result "0-1"]
[WhiteElo "2279"]
[BlackElo "2428"]
[TimeControl "180+1"]
[EndTime "9:50:16 PST"]
[Termination "The_Straightforward_Rook won by resignation"]

1. e4 {[%clk 0:03:00.9]} 1... c6 {[%clk 0:02:58.5]} 2. d4 {[%clk 0:03:00.1]}
2... d5 {[%clk 0:02:56.7]} 3. e5 {[%clk 0:03:00.5]} 3... Bf5 {[%clk 0:02:54.2]}
4. Nf3 {[%clk 0:02:59.6]} 4... e6 {[%clk 0:02:54.1]} 5. Be2 {[%clk 0:02:58.3]}
5... Nd7 {[%clk 0:02:54.3]} 6. O-O {[%clk 0:02:56.3]} 6... a5 {[%clk 0:02:54.4]}
7. a4 {[%clk 0:02:54.2]} 7... f6 {[%clk 0:02:53.4]} 8. exf6 {[%clk 0:02:38.3]}
8... Ngxf6 {[%clk 0:02:51.4]} 9. Bf4 {[%clk 0:02:35.9]} 9... Be7 {[%clk
0:02:48.8]} 10. Bd3 {[%clk 0:02:33.4]} 10... Bg4 {[%clk 0:02:45.5]} 11. h3
{[%clk 0:02:30]} 11... Bh5 {[%clk 0:02:44.9]} 12. Nbd2 {[%clk 0:02:27]} 12...
O-O {[%clk 0:02:44.5]} 13. Bg3 {[%clk 0:02:24.3]} 13... Kh8 {[%clk 0:02:41]} 14.
c3 {[%clk 0:02:22.8]} 14... c5 {[%clk 0:02:28]} 15. Qe1 {[%clk 0:01:44.4]} 15...
Qb6 {[%clk 0:02:26.6]} 16. Bb5 {[%clk 0:01:31.6]} 16... cxd4 {[%clk 0:02:21.8]}
17. Nxd4 {[%clk 0:01:29.6]} 17... Nc5 {[%clk 0:02:18.7]} 18. Be5 {[%clk
0:01:23]} 18... Nfe4 {[%clk 0:02:07.8]} 19. Nxe4 {[%clk 0:01:14.2]} 19... Nxe4
{[%clk 0:02:08.7]} 20. f3 {[%clk 0:01:12]} 20... Nc5 {[%clk 0:02:03.9]} 21. Qg3
{[%clk 0:01:08.5]} 21... Bg6 {[%clk 0:02:00.5]} 22. Rae1 {[%clk 0:01:04.3]}
22... Bf6 {[%clk 0:01:56.2]} 23. Bc7 {[%clk 0:01:03.1]} 23... Qa7 {[%clk
0:01:55]} 24. Kh2 {[%clk 0:00:58.8]} 24... Bf5 {[%clk 0:01:21.9]} 25. Nxf5
{[%clk 0:00:50.2]} 25... exf5 {[%clk 0:01:22.8]} 26. Bd6 {[%clk 0:00:49.6]}
26... Rfd8 {[%clk 0:01:15.9]} 27. Be7 {[%clk 0:00:40.9]} 27... Qb6 {[%clk
0:01:01.3]} 28. Bxd8 {[%clk 0:00:36.8]} 28... Rxd8 {[%clk 0:01:02.2]} 29. f4
{[%clk 0:00:37.3]} 29... Ne4 {[%clk 0:01:00.6]} 30. Qe3 {[%clk 0:00:35.2]} 30...
d4 {[%clk 0:00:59.4]} 31. cxd4 {[%clk 0:00:31]} 31... Bxd4 {[%clk 0:01:00.3]}
32. Qb3 {[%clk 0:00:27.8]} 32... Qf6 {[%clk 0:00:57.8]} 33. Rd1 {[%clk
0:00:26.1]} 33... Rf8 {[%clk 0:00:53]} 34. Qc4 {[%clk 0:00:25.8]} 34... Bxb2
{[%clk 0:00:49.5]} 35. Rd7 {[%clk 0:00:25]} 35... Bc3 {[%clk 0:00:42.7]} 36.
Rxb7 {[%clk 0:00:21.9]} 36... h5 {[%clk 0:00:41.2]} 37. Rd7 {[%clk 0:00:19.2]}
37... Qg6 {[%clk 0:00:41]} 38. Qd3 {[%clk 0:00:16.7]} 38... Bb4 {[%clk
0:00:35.5]} 39. Rc7 {[%clk 0:00:16.1]} 39... Bd6 {[%clk 0:00:35.4]} 40. Rc6
{[%clk 0:00:16]} 40... h4 {[%clk 0:00:32.6]} 41. Qf3 {[%clk 0:00:14.7]} 41...
Rf6 {[%clk 0:00:30.4]} 42. Re1 {[%clk 0:00:14]} 42... Qg3+ {[%clk 0:00:27.8]}
43. Qxg3 {[%clk 0:00:14.4]} 43... hxg3+ {[%clk 0:00:28.7]} 44. Kg1 {[%clk
0:00:15]} 44... Bc5+ {[%clk 0:00:28.6]} 45. Kf1 {[%clk 0:00:15.4]} 45... Rxc6
{[%clk 0:00:18.9]} 46. Bxc6 {[%clk 0:00:16.3]} 46... Bb4 {[%clk 0:00:19.3]} 47.
Rd1 {[%clk 0:00:15.3]} 47... Nc3 {[%clk 0:00:18.9]} 48. Rd8+ {[%clk 0:00:15.8]}
48... Kh7 {[%clk 0:00:19.5]} 49. Bd7 {[%clk 0:00:15.9]} 49... g6 {[%clk
0:00:18.1]} 50. Rc8 {[%clk 0:00:16.2]} 50... Kh6 {[%clk 0:00:18.2]} 51. Rg8
{[%clk 0:00:15.3]} 51... Nd5 {[%clk 0:00:15.6]} 52. Be8 {[%clk 0:00:15.5]} 52...
Nxf4 {[%clk 0:00:15.5]} 53. Rh8+ {[%clk 0:00:15]} 53... Kg5 {[%clk 0:00:15.8]}
54. Bb5 {[%clk 0:00:13.4]} 54... Kf6 {[%clk 0:00:14.6]} 55. Rc8 {[%clk
0:00:14.3]} 55... g5 {[%clk 0:00:14.8]} 56. Rc6+ {[%clk 0:00:15.2]} 56... Ke5
{[%clk 0:00:15.3]} 57. Rc4 {[%clk 0:00:15.8]} 57... Nd5 {[%clk 0:00:14.9]} 58.
Rc8 {[%clk 0:00:15.5]} 58... Ne3+ {[%clk 0:00:13.6]} 59. Ke2 {[%clk 0:00:15.9]}
59... Nxg2 {[%clk 0:00:13.6]} 60. Kf3 {[%clk 0:00:16.8]} 60... Nf4 {[%clk
0:00:10.8]} 61. Re8+ {[%clk 0:00:17.7]} 61... Kf6 {[%clk 0:00:10.1]} 62. Kxg3
{[%clk 0:00:18.6]} 62... Nd5 {[%clk 0:00:09.4]} 63. Rd8 {[%clk 0:00:18.1]} 63...
f4+ {[%clk 0:00:08.8]} 64. Kf3 {[%clk 0:00:18.7]} 64... Ne3 {[%clk 0:00:07.4]}
65. Rc8 {[%clk 0:00:18.5]} 65... Nf5 {[%clk 0:00:05.6]} 66. Rc6+ {[%clk
0:00:19.4]} 66... Ke5 {[%clk 0:00:05.9]} 67. Bd3 {[%clk 0:00:19.4]} 67... Nd4+
{[%clk 0:00:05.9]} 68. Kg4 {[%clk 0:00:19.5]} 68... Nxc6 {[%clk 0:00:06.6]} 69.
Kxg5 {[%clk 0:00:20.4]} 69... Nd4 {[%clk 0:00:06.6]} 70. h4 {[%clk 0:00:20.4]}
70... f3 {[%clk 0:00:05.6]} 71. h5 {[%clk 0:00:21]} 71... Ne6+ {[%clk
0:00:03.9]} 72. Kg6 {[%clk 0:00:21.2]} 72... Kf4 {[%clk 0:00:04]} 73. h6 {[%clk
0:00:21.2]} 73... Bc3 {[%clk 0:00:04]} 74. Kf7 {[%clk 0:00:20.3]} 74... Nc5
{[%clk 0:00:04.1]} 75. Bb5 {[%clk 0:00:19.9]} 75... f2 {[%clk 0:00:04.2]} 76. h7
{[%clk 0:00:20.2]} 76... Kf3 {[%clk 0:00:04.3]} 77. Kg8 {[%clk 0:00:20.4]} 77...
Kg2 {[%clk 0:00:04.4]} 78. h8=Q {[%clk 0:00:20.4]} 78... Bxh8 {[%clk 0:00:04.1]}
79. Kxh8 {[%clk 0:00:21.3]} 79... f1=Q {[%clk 0:00:04.8]} 80. Bxf1+ {[%clk
0:00:22.2]} 80... Kxf1 {[%clk 0:00:05.7]} 0-1